Cogmind - Beta 13 @@@ ROGUE MODE // 2024.04.11 @ 17:28:59 Player: Millea Result: Destroyed by G-47 Trooper with Particle Gun Performance ------------- Evolutions (2) 1000 Regions Visited (8) 1600 Robots Destroyed (139) 695 Value Destroyed (5508) 5508 Prototype IDs (32) 640 Alien Tech Used (0) 0 Bonus (2126) 2126 TOTAL SCORE: 11569 Bonus ------- High Alert Combat Kills 944 Follower Combat Kills 229 Entered Garrisons 200 Used RIF Installer 500 Aligned with FarCom 300 Friendly Fire -47 Cogmind --------- Core Integrity 0/550 Matter 268/300 Energy 90/100 System Corruption 1% Temperature Cool (18) Movement Core (700) Ox13 Location -8/Materials Parts ------- > --- POWER (1) -------- (None) > --- PROPULSION (2) --- (None) > --- UTILITY (4) ------ Large Storage Unit Powered Armor > --- WEAPON (4) ------- Particle Gun Gauss Cannon > --- INVENTORY (15) --- Medium Armored Exoskeleton Large Matter Pod (150) Graphene Brace Relay Coupler [NC] (21) Relay Coupler [NC] (24) Tractor Beam Datajack Peak State ------------ > --- POWER ------------ Heavy Ion Engine > --- PROPULSION ------- Armored Treads Improved Medium Treads > --- UTILITY ---------- Improved Cooling System Large Storage Unit Recoil Nullifier Long-range Tractor Beam > --- WEAPON ----------- Enhanced Autogun Gauss Cannon Gauss Cannon Hypervelocity Gauss Cannon > --- INVENTORY -------- Reinforced Ion Engine Medium Armored Exoskeleton Improved Cooling System Powered Armor Powered Armor Powered Armor Powered Armor Graphene Brace Shield Generator Relay Coupler [NC] Relay Coupler [NC] Field Lobotomy Kit [Rating: 49] Favorites ----------- Power Heavy Ion Engine Engine Heavy Ion Engine Propulsion Light Treads Treads Light Treads Leg Carbon-fiber Leg Utility Large Storage Unit Device Improved Cooling System Storage Large Storage Unit Protection Improved Medium Armor Plating Weapon Gauss Cannon Energy Gun Small Laser Energy Cannon Advanced Beam Cannon Ballistic Gun Enhanced Autogun Ballistic Cannon Gauss Cannon Special Weapon Field Lobotomy Kit Build | -11 -10 -9 -9 -9 -8 -8 -8 -8 ------- Run | Yrd Mat Mat Min Exi Min Mat Gar Mat Slots Evolved 4 | . . 2 . . . 2 . . Power . | . . . . . . . . . Propulsion . | . . . . . . . . . Utility 2 | . . . . . . 2 . . Weapon 2 | . . 2 . . . . . . Parts Attached 80 | 6 1 18 3 4 1 10 10 27 Power 6 | 1 . 4 . . . . . 1 Engine 6 | 1 . 4 . . . . . 1 Core . | . . . . . . . . . Reactor . | . . . . . . . . . Propulsion 15 | 2 . 5 . . . 3 1 4 Treads 14 | 2 . 5 . . . 3 1 3 Leg 1 | . . . . . . . . 1 Wheel . | . . . . . . . . . Hover . | . . . . . . . . . Flight . | . . . . . . . . . Utility 21 | 1 1 2 2 . . 3 4 8 Device 10 | . . . . . . 3 3 4 Storage 3 | 1 1 1 . . . . . . Processor . | . . . . . . . . . Hackware . | . . . . . . . . . Protection 8 | . . 1 2 . . . 1 4 Artifact . | . . . . . . . . . Weapon 38 | 2 . 7 1 4 1 4 5 14 Energy Gun 10 | . . 1 1 2 . 1 1 4 Energy Cannon 1 | . . . . . . . . 1 Ballistic Gun 18 | 2 . 6 . 2 1 3 . 4 Ballistic Cannon 8 | . . . . . . . 4 4 Launcher . | . . . . . . . . . Special Weapon 1 | . . . . . . . . 1 Impact Weapon . | . . . . . . . . . Slashing Weapon . | . . . . . . . . . Piercing Weapon . | . . . . . . . . . Special Melee Weapon . | . . . . . . . . . Unidentified Prototypes 4 | . . 1 . . . 3 . . Parts Lost 31 | . . 6 . . . . 4 21 Power 4 | . . 2 . . . . 1 1 Propulsion 4 | . . . . . . . . 4 Utility 10 | . . . . . . . 1 9 Weapon 13 | . . 4 . . . . 2 7 Highest Loss Streak 11 | . . 3 . . . . 1 11 To Critical Strikes . | . . . . . . . . . Average Slot Usage (%) 95 | . 85 93 100 61 100 99 98 97 Engine 9 | . 14 10 11 11 11 9 7 8 Treads 19 | . 28 22 22 22 22 18 18 17 Device 13 | . . . . . . 18 21 24 Storage 10 | . 14 18 11 11 11 9 9 9 Protection 5 | . . 2 11 11 11 9 5 2 Energy Gun 6 | . . 6 18 3 22 5 . 4 Ballistic Gun 19 | . 28 33 25 3 22 30 12 15 Ballistic Cannon 9 | . . . . . . . 23 14 Naked Turns . | . . . . . . . . . Heaviest Build 67 | 13 28 37 44 44 46 51 62 67 Greatest Support 50 | 40 40 40 40 40 40 42 50 50 Greatest Overweight (x) 22 | . . . 1 1 1 1 1 22 Average Overweight (x) . | . . . . . 1 1 1 1 Largest Inventory Capacity 15 | 8 15 15 15 15 15 15 15 15 Average Capacity 14 | 6 11 15 15 15 15 15 15 15 Most Carried 15 | 2 8 15 15 15 15 15 15 15 Average Carried 13 | 1 6 9 14 14 14 14 14 13 Final Capacity 15 | 8 15 15 15 15 15 15 15 15 Final Carried 15 | 2 8 15 15 14 15 14 14 9 Class Distribution -------------------- 60% | Skirmisher 13% | Tank 10% | Mutant 5% | Scavenger-Gunner 4% | Scavenger-Tank Dominant Class ---------------- Mutant | -10/Materials Scavenger-Gunner | -9/Materials Tank | -9/Mines Mutant | -9/Exiles Skirmisher | -8/Mines Skirmisher | -8/Materials Skirmisher | -8/Garrison Skirmisher | -8/Materials Resources | -11 -10 -9 -9 -9 -8 -8 -8 -8 ----------- Run | Yrd Mat Mat Min Exi Min Mat Gar Mat Matter Collected 5526 | 207 98 670 124 . 58 569 1317 2483 Remotely 2680 | . . . . . . . 546 2134 Salvage Created 4779 | . 187 1000 238 . . 774 930 1650 Parts 293 | . 17 72 19 . . 50 58 77 Haulers Intercepted 6 | . 1 1 . . . 2 . 2 Recyclers Shooed 1 | . . . . . . . . 1 Parts Field Recycled . | . . . . . . . . . Retrieved Matter . | . . . . . . . . . Parts Self-Destructed . | . . . . . . . . . Prevented . | . . . . . . . . . Kills | -11 -10 -9 -9 -9 -8 -8 -8 -8 ------- Run | Yrd Mat Mat Min Exi Min Mat Gar Mat Combat Hostiles Destroyed 113 | . 5 23 7 . . 15 30 33 Melee 1 | . . . . . . . . 1 Guns 77 | . 5 23 7 . . 15 9 18 Cannons 35 | . . . . . . . 21 14 Classes Destroyed 17 | . 4 3 2 . . 3 3 2 Worker 4 | . . . 1 . . . . 3 Tunneler 1 | . . . 1 . . . . . Hauler 6 | . 1 1 . . . 2 . 2 Recycler 2 | . . 1 . . . . . 1 Mechanic 2 | . . . . . . . . 2 Operator 1 | . . . . . . 1 . . Watcher 10 | . 1 4 . . . 2 1 2 Swarmer 24 | . 3 8 4 . . 4 3 2 Grunt 58 | . 2 9 3 . . 9 16 19 Brawler 3 | . . 1 . . . . 1 1 Duelist 5 | . . . . . . . 1 4 Protector 2 | . . . . . . . . 2 Sentry 14 | . . 5 . . . . 4 5 Specialist 4 | . . . . . . . 4 . Hunter 1 | . . . . . . 1 . . Heavy 1 | . . . . . . 1 . . Behemoth 1 | . . . . . . . 1 . Best Kill Streak 8 | . 3 8 3 . . 6 7 7 Combat Bots Only 7 | . 3 7 3 . . 4 7 5 Max Kills in Single Turn 2 | . 1 2 2 . . 2 2 2 Gunslinging 1 | . . 1 . . . 1 1 . Exploded . | . . . . . . . . . Melee 1 | . . . . . . . . 1 Uniques/NPCs Destroyed . | . . . . . . . . . Combat | -11 -10 -9 -9 -9 -8 -8 -8 -8 -------- Run | Yrd Mat Mat Min Exi Min Mat Gar Mat Hostile Shots Fired 617 | . 28 89 22 . . 45 159 274 Missed 151 | . 9 13 6 . . 11 53 59 Damage Taken 6831 | . 258 947 138 . . 493 1499 3496 Core 703 | . 31 111 . . . 68 144 349 Absorbed by Shields 284 | . . . . . . 111 67 106 Core Remaining (%) 86 | 100 87 . . . 72 . . . Volleys Fired 335 | . 20 60 18 . . 41 81 115 Largest 4 | . 2 4 4 . . 4 4 4 Hottest 223 | . 40 103 152 . . 157 182 223 Shots Fired 1190 | . 40 232 67 . . 160 287 404 Gun 828 | . 40 232 67 . . 160 99 230 Cannon 357 | . . . . . . . 188 169 Launcher . | . . . . . . . . . Special 5 | . . . . . . . . 5 Kinetic 1091 | . 40 214 49 . . 143 286 359 Thermal 94 | . . 18 18 . . 17 1 40 Explosive . | . . . . . . . . . Electromagnetic . | . . . . . . . . . Robot Hit Streak 19 | . 7 12 4 . . 11 19 14 Robot Miss Streak 7 | . 3 4 7 . . 4 6 5 Penetration Max 1 | . . . . . . . 1 1 Secondary Targets 15 | . 2 5 . . . 6 2 . Max Gunslinging Chain 1 | . 1 1 . . . 1 1 . Shots Hit Robots 640 | . 23 132 23 . . 102 143 217 Core Hits 270 | . 11 63 15 . . 43 55 83 Critical Kills 13 | . 1 . . . . . 4 8 Critical Parts Destroyed 17 | . . . . . . . 1 16 Critical Strikes 51 | . 1 . . . . . 17 33 Burn 2 | . . . . . . . . 2 Destroy 32 | . 1 . . . . . 5 26 Blast 17 | . . . . . . . 12 5 Melee Attacks . | . . . . . . . . . Impact . | . . . . . . . . . Slashing . | . . . . . . . . . Piercing . | . . . . . . . . . Sneak Attacks . | . . . . . . . . . Combat Hostiles . | . . . . . . . . . Follow-up Attacks . | . . . . . . . . . Damage Inflicted 11379 | . 261 1364 271 . . 1609 3464 4410 Guns 6542 | . 261 1269 271 . . 1609 815 2317 Cannons 4698 | . . . . . . . 2631 2067 Explosions 95 | . . 95 . . . . . . Melee . | . . . . . . . . . Ramming 44 | . . . . . . . 18 26 Kinetic 10316 | . 261 1127 220 . . 1416 3428 3864 Thermal 1019 | . . 237 51 . . 193 18 520 Explosive . | . . . . . . . . . Electromagnetic . | . . . . . . . . . Impact . | . . . . . . . . . Slashing . | . . . . . . . . . Piercing . | . . . . . . . . . Highest Corruption 1 | . . 1 1 1 1 1 1 1 Average Corruption 1 | . . 1 1 1 1 1 1 1 Corruption Purged . | . . . . . . . . . Corruption Blocked . | . . . . . . . . . Effects 44 | . . 5 4 3 3 2 10 17 Message Errors 14 | . . 2 3 1 1 . 2 5 Matter Fused 12 | . . 2 1 1 1 . 3 4 Heat Flow Errors 5 | . . . . 1 1 . 1 2 Energy Discharges 4 | . . 1 . . . . 2 1 Data Loss (minor) 3 | . . . . . . . . 3 Data Loss (major) 2 | . . . . . . . 2 . Misfires 3 | . . . . . . 2 . 1 Weapon Failures 1 | . . . . . . . . 1 Overload Shots . | . . . . . . . . . Overflow Damage 90 | . . 85 . . . . . 5 Projectiles 5 | . . . . . . . . 5 Explosions 85 | . . 85 . . . . . . Melee . | . . . . . . . . . Knockbacks 36 | . . . . . . . 18 18 Impact . | . . . . . . . . . Kinetic 33 | . . . . . . . 17 16 Secondary 3 | . . . . . . . 1 2 Self-Inflicted Damage 92 | . . 92 . . . . . . Shots 1 | . . 1 . . . . . . Rammed 12 | . . . . . . . 6 6 Targets Rammed 14 | . . . . . . . 6 8 Kicked . | . . . . . . . . . Crushed 2 | . . . . . . . . 2 Highest Temperature 379 | . 6 250 297 231 89 379 292 360 Average Temperature 108 | . 6 80 121 118 51 133 80 129 Received Heat Transfer 2774 | . 36 282 27 . . 138 577 1714 Effects 6 | . . . . . . 2 1 3 Shutdowns 1 | . . . . . . . . 1 Energy Bleed 2 | . . . . . . 1 . 1 Interference 2 | . . . . . . . 1 1 Matter Decay 1 | . . . . . . 1 . . Siege Activations . | . . . . . . . . . Robots Corrupted . | . . . . . . . . . Combat Hostiles . | . . . . . . . . . Parts Fried . | . . . . . . . . . Impact Corruptions . | . . . . . . . . . Robots Melted . | . . . . . . . . . Combat Hostiles . | . . . . . . . . . Parts Melted 3 | . . . . . . 1 1 1 Heat Transferred 2152 | . . 375 112 . . 370 37 1258 Parts Sabotaged . | . . . . . . . . . Parts Stolen . | . . . . . . . . . Parts Stripped . | . . . . . . . . . Power Chain Reactions . | . . . . . . . . . Alert | -11 -10 -9 -9 -9 -8 -8 -8 -8 ------- Run | Yrd Mat Mat Min Exi Min Mat Gar Mat Peak Influence 1523 | . 140 339 110 . . 242 1523 850 Initial 742 | . . 59 10 . . . 59 742 Average 411 | . 103 112 54 . . 87 782 650 Maximum Alert Level 4 | . . 1 . . . 1 4 3 Low Security (%) 48 | 100 100 77 100 . 100 90 17 . Level 1 6 | . . 22 . . . 9 12 . Level 2 21 | . . . . . . . 13 67 Level 3 15 | . . . . . . . 26 32 Level 4 7 | . . . . . . . 29 . Level 5 . | . . . . . . . . . High Security . | . . . . . . . . . Max Security . | . . . . . . . . . Squads Dispatched 15 | . . 5 1 . . 1 . 8 Investigation 6 | . . 4 1 . . . . 1 Extermination . | . . . . . . . . . Reinforcement 4 | . . 1 . . . 1 . 2 Assault 5 | . . . . . . . . 5 Garrison . | . . . . . . . . . Intercept . | . . . . . . . . . Searches Triggered . | . . . . . . . . . Construction Impeded . | . . . . . . . . . Haulers Reinforced . | . . . . . . . . . Active Scanning Responses . | . . . . . . . . . Cargo Convoy Interrupts . | . . . . . . . . . Stealth | -11 -10 -9 -9 -9 -8 -8 -8 -8 --------- Run | Yrd Mat Mat Min Exi Min Mat Gar Mat Distress Signals 14 | . . 5 . . . 3 3 3 Communications Jammed . | . . . . . . . . . Distress Signals . | . . . . . . . . . Times Spotted 167 | . 6 33 6 . . 24 38 60 Peak Tracking Total 8 | . 3 8 3 . . 7 4 7 Tactical Retreats 6 | . . . . . . . 2 4 Traps | -11 -10 -9 -9 -9 -8 -8 -8 -8 ------- Run | Yrd Mat Mat Min Exi Min Mat Gar Mat Traps Triggered 11 | . 1 2 . . . 1 7 . Indirectly . | . . . . . . . . . Trap Hack Attempts . | . . . . . . . . . Triggered . | . . . . . . . . . Disarmed . | . . . . . . . . . Reprogrammed . | . . . . . . . . . Reused . | . . . . . . . . . Traps Extracted . | . . . . . . . . . Installed . | . . . . . . . . . Triggered . | . . . . . . . . . Machines | -11 -10 -9 -9 -9 -8 -8 -8 -8 ---------- Run | Yrd Mat Mat Min Exi Min Mat Gar Mat Machines Disabled 19 | . . 1 1 . . 2 6 9 Max in Single Turn 2 | . . 1 1 . . 1 1 2 Garrison Relay 4 | . . . . . . . 4 . Machines Repaired . | . . . . . . . . . Machines Dismantled . | . . . . . . . . . Machines Sabotaged . | . . . . . . . . . Overloaded Fab Kills . | . . . . . . . . . Hacking | -11 -10 -9 -9 -9 -8 -8 -8 -8 --------- Run | Yrd Mat Mat Min Exi Min Mat Gar Mat Machines Accessed 23 | . 1 7 1 2 . 3 3 6 Terminals 18 | . 1 7 . . . 2 3 5 Fabricators . | . . . . . . . . . Repair Stations . | . . . . . . . . . Recycling Units 1 | . . . . . . . . 1 Scanalyzers . | . . . . . . . . . Garrison Access 1 | . . . . . . 1 . . Total Hacks 74 | . 2 24 1 5 . 10 8 24 Successful 38 | . . 15 1 5 . 6 2 9 Failed 36 | . 2 9 . . . 4 6 15 Catastrophic 5 | . . 1 . . . 1 1 2 Database Lockouts . | . . . . . . . . . Manual 31 | . . 7 . 1 . 8 . 15 Terminals 61 | . 2 24 . . . 9 8 18 Fabricators . | . . . . . . . . . Repair Stations . | . . . . . . . . . Recycling Units 6 | . . . . . . . . 6 Scanalyzers . | . . . . . . . . . Garrison Access 1 | . . . . . . 1 . . Terminal Hacks 27 | . . 11 1 5 . 3 2 5 Record 5 | . . 1 . 4 . . . . Robot Analysis 2 | . . . . . . 1 . 1 Prototype ID Bank 2 | . . 1 . . . 1 . . Open Door 2 | . . . 1 . . . 1 . Level Access Points 1 | . . 1 . . . . . . Branch Access Points 1 | . . 1 . . . . . . Alert Level 1 | . . . . . . . . 1 Unreport Threat 8 | . . 4 . . . 1 . 3 Transport Status 2 | . . 2 . . . . . . Zone Layout 1 | . . 1 . . . . . . Garrison Registry 1 | . . . . . . . 1 . Derelict Proto ID Bank 1 | . . . . 1 . . . . Fabricator Hacks . | . . . . . . . . . Repair Station Hacks . | . . . . . . . . . Recycling Unit Hacks 1 | . . . . . . . . 1 Retrieve Components 1 | . . . . . . . . 1 Scanalyzer . | . . . . . . . . . Garrison Access Hacks 1 | . . . . . . 1 . . Unlock Access 1 | . . . . . . 1 . . Unauthorized Hacks 9 | . . 4 . . . 2 . 3 Terminals 8 | . . 4 . . . 2 . 2 Track 1 | . . 1 . . . . . . Assimilate 1 | . . . . . . 1 . . Botnet 5 | . . 3 . . . 1 . 1 Operators 1 | . . . . . . . . 1 Fabricators . | . . . . . . . . . Repair Stations . | . . . . . . . . . Recycling Units 1 | . . . . . . . . 1 Mask 1 | . . . . . . . . 1 Scanalyzers . | . . . . . . . . . Garrison Access . | . . . . . . . . . Data Cores Recovered . | . . . . . . . . . Used . | . . . . . . . . . Hacking Detections 18 | . 1 7 . . . 2 2 6 Full Trace Events 5 | . . 2 . . . . 2 1 Feedback Events 1 | . . 1 . . . . . . Corruption 1 | . . 1 . . . . . . Feedback Blocked . | . . . . . . . . . Robot Schematics Acquired . | . . . . . . . . . Robots Built . | . . . . . . . . . Authchips . | . . . . . . . . . Time . | . . . . . . . . . Total Robot Build Rating . | . . . . . . . . . Part Schematics Acquired . | . . . . . . . . . Parts Built . | . . . . . . . . . Authchips . | . . . . . . . . . Time . | . . . . . . . . . Total Part Build Rating . | . . . . . . . . . Parts Repaired . | . . . . . . . . . Time . | . . . . . . . . . Parts Recycled . | . . . . . . . . . Recycled Matter . | . . . . . . . . . Retrieved Matter . | . . . . . . . . . Retrieved Components 3 | . . . . . . . . 3 Parts Scanalyzed . | . . . . . . . . . Part Schematics Acquired . | . . . . . . . . . Parts Damaged . | . . . . . . . . . Bothacking | -11 -10 -9 -9 -9 -8 -8 -8 -8 ------------ Run | Yrd Mat Mat Min Exi Min Mat Gar Mat Used RIF Installer 1 | . . . . . . . 1 . Robots Hacked . | . . . . . . . . . Non-combat . | . . . . . . . . . Combat . | . . . . . . . . . Robot Hacks Applied . | . . . . . . . . . Relay Couplers Released 15 | . . . . . . . 15 . Machine Destruction 15 | . . . . . . . 15 . Fabnet Peak Effective % . | . . . . . . . . . Robots Rewired . | . . . . . . . . . Allies Hacked . | . . . . . . . . . Hacks Repelled . | . . . . . . . . . Allies | -11 -10 -9 -9 -9 -8 -8 -8 -8 -------- Run | Yrd Mat Mat Min Exi Min Mat Gar Mat Total Allies 7 | . . . . . . 1 1 5 Largest Group 4 | . . . . . . 1 1 4 Highest-Rated Group 77 | . . . . . . 10 31 77 Highest-Rated Ally 31 | . . . . . . 10 31 29 Total Orders . | . . . . . . . . . Ally Attacks 73 | . . . . . . . 20 53 Total Damage 1016 | . . . . . . . 337 679 Kills 11 | . . . . . . . 5 6 Allies Corrupted 1 | . . . . . . . . 1 Allies Melted . | . . . . . . . . . Field Lobotomies 5 | . . . . . . . . 5 Intel | -11 -10 -9 -9 -9 -8 -8 -8 -8 ------- Run | Yrd Mat Mat Min Exi Min Mat Gar Mat Robot Analysis Total 2 | . . . . . . 1 . 1 Derelict Logs Recovered 1 | . . . 1 . . . . . Drone Launches . | . . . . . . . . . Drone Recoveries . | . . . . . . . . . Exploration | -11 -10 -9 -9 -9 -8 -8 -8 -8 ------------- Run | Yrd Mat Mat Min Exi Min Mat Gar Mat Turns Passed 8629 | 60 328 859 945 608 816 750 2132 2131 Spaces Moved 3417 | 32 166 399 404 357 339 255 744 721 Core 9 | 1 . . . . . . . 8 Treads 3403 | 31 166 399 404 357 339 255 744 708 Legs 5 | . . . . . . . . 5 Wheels . | . . . . . . . . . Hover . | . . . . . . . . . Flight . | . . . . . . . . . Fastest Speed 50 | 50 160 160 160 160 240 232 237 160 Average Speed 214 | 156 160 160 214 168 240 235 240 237 Slowest Speed 1150 | 160 160 160 240 240 240 240 245 1150 Overloaded Moves . | . . . . . . . . . Propulsion Burnouts . | . . . . . . . . . Robots Hopped . | . . . . . . . . . Cave-ins Triggered . | . . . . . . . . . Exploration Rate (%) 47 | 3 35 46 51 61 66 43 76 50 Regions Visited 8 Branch Regions 3 Pre-discovered Areas 2 | . . . 1 1 . . . . Known Exits Taken 3 | . . 1 . . 1 1 . . Unknown Exits Taken 4 | 1 1 . 1 1 . . . . Scrap Searched 1 | . . . 1 . . . . . Spaces Dug . | . . . . . . . . . Terrain Destroyed 70 | . . 21 . . . . 5 44 Melee . | . . . . . . . . . Projectile 49 | . . . . . . . 5 44 AOE 21 | . . 21 . . . . . . Terrain Rammed . | . . . . . . . . . Walls Destroyed . | . . . . . . . . . Machines Disabled . | . . . . . . . . . Actions | -11 -10 -9 -9 -9 -8 -8 -8 -8 --------- Run | Yrd Mat Mat Min Exi Min Mat Gar Mat Total 4137 | 39 193 502 449 367 342 351 954 940 Wait 179 | . . 11 18 . 2 24 70 54 Move 3410 | 31 165 398 403 356 338 255 743 721 Hop . | . . . . . . . . . Pick Up 49 | 2 6 9 2 1 1 8 14 6 Fast Attach 38 | 6 1 6 1 4 . 4 4 12 Attach 21 | . . 5 . . . 2 3 11 Detach . | . . . . . . . . . Swap 21 | . . 7 2 . 1 4 3 4 Drop 58 | . 1 6 5 6 . 13 18 9 Fire 335 | . 20 60 18 . . 41 81 115 Melee . | . . . . . . . . . Ram . | . . . . . . . . . Kick . | . . . . . . . . . Crush 14 | . . . . . . . 6 8 Escape Stasis 12 | . . . . . . . 12 . Rewire . | . . . . . . . . . Trap . | . . . . . . . . . Miscellaneous . | . . . . . . . . . Route ------- -11/Scrapyard -10/Materials -9/Materials (discovered 4 exits: *Mat x3 / *Min) -9/Mines (discovered 2 exits: *Mat / *Exi) -9/Exiles (discovered 2 exits: [*Min x2]) -8/Mines -8/Materials -8/Garrison (discovered 4 exits: *Mat x4) -8/Materials (discovered 1 exit: [*Fac]) History --------- Turn | Location | Event 38 | -11/Scrapyard | Discovered new exit (range 15) 61 | -11/Scrapyard | Entered Materials 305 | -10/Materials | Discovered new exit (range 9) 312 | -10/Materials | Build established: Mutant 389 | -10/Materials | Entered another Materials area 389 | -9/Materials | Evolved 2 slots: Weapon x2 521 | -9/Materials | Destroyed 7 combat bots 774 | -9/Materials | Lost 3 parts (1p2w) 863 | -9/Materials | Build established: Scavenger-Gunner 864 | -9/Materials | Discovered new exit (range 20) 1079 | -9/Materials | Identified exit to Materials 1079 | -9/Materials | Identified exit to Mines 1248 | -9/Materials | Entered Mines 1287 | -9/Mines | Met a Derelict bent on vengeance 1364 | -9/Mines | Build established: Scavenger-Tank 1490 | -9/Mines | Met a Derelict shopkeep closing up shop 1742 | -9/Mines | Learned location of Storage (-7) 1798 | -9/Mines | Build established: Tank 1821 | -9/Mines | Discovered exit to Materials (range 11) 2183 | -9/Mines | Deemed a non-threat by the Exiles lab entrance 2183 | -9/Mines | Discovered new exit (range 5) 2193 | -9/Mines | Entered Exiles 2247 | -9/Exiles | Met 8R-AWN 2271 | -9/Exiles | Met EX-HEX 2321 | -9/Exiles | Met EX-BIN 2340 | -9/Exiles | Aligned with FarCom system 2342 | -9/Exiles | Given EX-Vault access code 2379 | -9/Exiles | Opened EX-Vault 2392 | -9/Exiles | Found Field Lobotomy Kit 2430 | -9/Exiles | Warned to stay clear of 0b10 Research branches 2472 | -9/Exiles | Met EX-DEC 2481 | -9/Exiles | Learned location of Zion (-6) 2502 | -9/Exiles | Build established: Mutant 2529 | -9/Exiles | Discovered new exit (range 12) 2758 | -9/Exiles | Discovered new exit (range 15) 2801 | -9/Exiles | Left Exiles lab with Field Lobotomy Kit 2801 | -9/Exiles | Entered Mines 3105 | -8/Mines | Build established: Skirmisher 3598 | -8/Mines | Discovered exit to Materials (range 9) 3617 | -8/Mines | Entered Materials 3617 | -8/Materials | Evolved 2 slots: Utility x2 3925 | -8/Materials | Build established: Tank 4246 | -8/Materials | Build established: Skirmisher 4367 | -8/Materials | Identified exit to Garrison 4367 | -8/Materials | Entered Garrison 4462 | -8/Garrison | Triggered checkpoint 4520 | -8/Garrison | Installed Relay Interface Framework 4551 | -8/Garrison | Garrison Relay disabled 4614 | -8/Garrison | Triggered checkpoint 4749 | -8/Garrison | Triggered checkpoint 4980 | -8/Garrison | Triggered checkpoint 5043 | -8/Garrison | Rescued a captive Derelict 5065 | -8/Garrison | Garrison Relay disabled 5186 | -8/Garrison | Discovered new exit (range 25) 5186 | -8/Garrison | Discovered new exit (range 22) 5186 | -8/Garrison | Discovered new exit (range 76) 5186 | -8/Garrison | Discovered new exit (range 54) 5304 | -8/Garrison | Triggered checkpoint 5350 | -8/Garrison | Triggered checkpoint 5392 | -8/Garrison | Triggered checkpoint 5467 | -8/Garrison | Destroyed 7 combat bots 5532 | -8/Garrison | Spotted B-75 Beast 5546 | -8/Garrison | Destroyed B-75 Beast 5661 | -8/Garrison | Garrison Relay disabled 6006 | -8/Garrison | Found Powered Armor 6010 | -8/Garrison | Found Powered Armor 6013 | -8/Garrison | Found Powered Armor 6017 | -8/Garrison | Found Powered Armor 6162 | -8/Garrison | Triggered checkpoint 6195 | -8/Garrison | Garrison Relay disabled 6248 | -8/Garrison | Spotted B-75 Beast 6499 | -8/Garrison | Entered Materials 7232 | -8/Materials | Core integrity fell below 50% 7299 | -8/Materials | First assault squad dispatched 7747 | -8/Materials | Assimilated G-50 Soldier with FLK Orb 7750 | -8/Materials | Assimilated G-47 Trooper with FLK Orb 7753 | -8/Materials | Assimilated G-47 Trooper with FLK Orb 7756 | -8/Materials | Assimilated G-50 Soldier with FLK Orb 7759 | -8/Materials | Assimilated G-47 Trooper with FLK Orb 7909 | -8/Materials | Lost 3 allies 8168 | -8/Materials | Core integrity fell below 20% 8379 | -8/Materials | Discovered new exit (range 10) 8630 | -8/Materials | Destroyed by G-47 Trooper with Particle Gun Last Messages --------------- 08602_ Lrn. Tractor Beam destroyed. 08605_ Lgt. Treads destroyed. 08606_ K-01 Serf collects debris. 08608_ Lgt. Treads destroyed. 08608_ Slug penetrates Purification Channel. 08610_ Powered Armor destroyed. 08611_ K-01 Serf collects debris. 08613_ U-05 Engineer builds a Wall. 08615_ K-01 Serf collects debris. 08617_ Gauss Cannon destroyed. 08617_ Critical hit (Burn: +37). 08618_ K-01 Serf collects debris. 08618_ U-05 Engineer builds a Wall. 08621_ K-01 Serf collects debris. 08622_ M-28 Smith repairs Imp. Heat Sink. 08625_ K-01 Serf collects debris. 08626_ Powered Armor destroyed. 08628_ U-05 Engineer builds a Wall. 08630_ Powered Armor destroyed. 08630_ U-05 Engineer builds a Door. Map ----- +----------------------------------------------------+ | | | | | | | | | | | | | | | | | | | | | | | | | | | ?????????????????????????????????????????????????? | | ?????????????????????????????????????????????????? | | ?????????????????????????????????????????????????? | | ?????????????????????????????????????????????????? | | ?????????????????????????????????????????????????? | | ?????????????????????????????????????????????????? | | ?????????????????##########??????????????????????? | | ?????????????????# !!= #??????????????????????? | | ?????????????????# !!= ???????#####??????????? | | ?????????????????# !!= ######### #??????????? | | ?????????????????# # ## #??????????? | | ???????#####?????# # /[## #??????????? | | ##########*##????# """ @#g" !## #??????????? | | # [ #????# """ g T ## #??????????? | | # ] #????# """Y ; ! ## #??????????? | | #]][ #????# %;g ## ##?????????? | | # = #??######+####;;;;+;## #?????????? | | # ] ####T### u #?????????? | | ! # + #?????????? | | # # #?????????? | | # # " #### u #?????????? | | # # """ " ##?#######?????????? | | ######+###### " " " ! ##????#######??????? | | ! ####### [ #??????? | | **! #??????? | | #######/############ ! T #??????? | | #?? ??????#### #??????? | | !# ???????# ###+# ######## #??????? | | # #??????# ## #??## ##??????? | | # #??????# ## """ #???# #???????? | | " # ! #??????# ## !! """ #???# #???????? | | " # #??????# ## !/ """ #???# #???????? | | " # ! ! #??????# ## !/ #???# #???????? | | # #??????# ## "#???# #???????? | | #############??????# ## T#???# #???????? | | ???????????????????# ## "#???# #???????? | | ???????????????????# ## /%#???# #???????? | +----------------------------------------------------+ Best States ------------- Heat Dissipation 58 Energy Generation 14 Energy Capacity 280 Matter Stores 447 Matter Capacity 450 Sight Range 16 Terrain Scan Density 10 Armor Coverage 1200 Weapon Cycling 30 Evasion (%) 40 Recoil Reduction 8 Item Schematics ----------------- None Robot Schematics ------------------ None Fabricated ------------ Nothing Alien Tech Used ----------------- None Achievements -------------- None Challenges ------------ None Game ------ Seed AbsorptionAutogunRedirector Manual? 0 Play Time 00:46:35 Cumulative 155.3 hours Start 2024.04.11 @ 16:43:25 End 2024.04.11 @ 17:28:59 Sessions 1 Manual Loads 0 Difficulty Rogue Special Mode None Game No. 142 Rogue 142 Adventurer 0 Explorer 0 Win Type - Total 4 Types 4/0/0/0/0/0/0/0/0 Lore% 66 Gallery% 75 Achievement% 62 Wizard Run 0 Options --------- Layout 2 ASCII 1 Keyboard 0 Movement Mouse Keybinds 0 Fullscreen 2 Font 24/Smallcaps Map View 50x44 Zoom Use 0% Tactical HUD 1 Map Filters NONE Filters NONE Steam 1 RUN: b7c001e8-2c0a-499d-b425-ad59cbb2c8c7